fUST/lending_fUST_20251207
["ID","MTS","AMOUNT","RATE_DAILY","PERIOD"]
[396536828,1765042446423,-43.98076145,6.8e-05,2]
[396536829,1765042446447,-262.28923855,6.869e-05,2]
[396536830,1765042452797,-152.03,6.869e-05,2]
[396536831,1765042465138,403.16,6.6e-05,2]
[396536832,1765042472863,-284.45094438,6.8e-05,2]
[396536833,1765042476437,-288.35324789,6.8e-05,2]
[396536834,1765042479507,-195.52,6.8e-05,2]
[396536835,1765042510252,227.54733063,6.732e-05,2]
[396536836,1765042521155,395.1,6.6e-05,2]
[396536837,1765042533866,622.64733063,6.732e-05,2]
[396536838,1765042542752,395.07,6.612e-05,2]
[396536845,1765042549400,212.2109806,2.981e-05,2]
[396536846,1765042578549,379.3,6.6e-05,2]
[396536847,1765042597132,379.1,6.612e-05,2]
[396536849,1765042640277,364.13,6.6e-05,2]
[396536850,1765042654936,591.67733063,6.732e-05,2]
[396536851,1765042656931,364.03,6.612e-05,2]
[396536852,1765042662317,239.12,6.654e-05,2]
[396536853,1765042677139,364.13,6.732e-05,2]
[396536854,1765042698985,349.56,6.6e-05,2]
[396536855,1765042699303,349.56,6.8e-05,2]
[396536856,1765042699440,295.59973488,6.782e-05,2]
[396536857,1765042707227,295.59973488,6.782e-05,2]
[396536858,1765042722630,295.59973488,6.782e-05,2]
[396536859,1765042730378,295.59973488,6.782e-05,2]
[396536860,1765042741727,236.08,6.667e-05,2]
[396536861,1765042745968,295.59973488,6.782e-05,2]
[396536862,1765042753688,275.58014217,6.782e-05,2]
[396536863,1765042758941,335.58,6.6e-05,2]
[396536864,1765042759317,335.58,6.8e-05,2]
[396536865,1765042768802,295.59973488,6.782e-05,2]
[396536866,1765042791355,295.59973488,6.782e-05,2]
[396536867,1765042814208,504.59973488,6.782e-05,2]
[396536868,1765042818950,322.16,6.6e-05,2]
[396536869,1765042819014,322.16,6.8e-05,2]
[396536870,1765042822126,233.07,6.66e-05,2]
[396536871,1765042836615,504.59973488,6.782e-05,2]
[396536872,1765042840746,7522.22106048,6.183e-05,2]
[396536873,1765042840768,2841.38461942,6.183e-05,2]
[396536874,1765042844366,504.59973488,6.782e-05,2]
[396536875,1765042844860,171.26640484,0.0001135,7]
[396536876,1765042845154,171.26640484,0.00013112,10]
[396536877,1765042859621,504.59973488,6.782e-05,2]
[396536878,1765042867349,504.59973488,6.782e-05,2]
[396536879,1765042877744,431.86,6.6e-05,2]
[396536880,1765042878106,431.86,6.8e-05,2]
[396536881,1765042890864,504.59973488,6.714e-05,2]
[396536882,1765042897041,431.67,6.612e-05,2]
[396536883,1765042901032,280.33,6.705e-05,2]
[396536884,1765042912827,504.59973488,6.714e-05,2]
[396536885,1765042935627,1138.18311394,6.714e-05,2]
[396536886,1765042937875,411.36,6.6e-05,2]
[396536887,1765042957744,1138.18311394,6.714e-05,2]
[396536888,1765042980287,1068.46738914,6.714e-05,2]
[396536889,1765042980758,305.18,6.698e-05,2]
[396536890,1765042998525,1201.14,6.6e-05,2]
[396536891,1765043059589,1344.0,6.6e-05,2]
[396536892,1765043062620,301.3,6.697e-05,2]
[396536893,1765043081877,633.58337906,6.714e-05,2]
[396536894,1765043102848,-265.52929686,6.782e-05,2]
[396536895,1765043104757,633.58337906,6.714e-05,2]
[396536896,1765043107804,-154.58447156,6.782e-05,2]
[396536897,1765043109954,-213.46961064,6.782e-05,2]
[396536898,1765043109976,-52.26695158,6.791e-05,2]
[396536899,1765043114342,-243.3327833,6.791e-05,2]
[396536900,1765043114368,-2.92043342,6.85e-05,2]
[396536901,1765043116495,-206.07956658,6.85e-05,2]
[396536902,1765043116516,-79.53686226,6.93e-05,2]
[396536903,1765043118881,160.0,5.8e-07,2]
[396536904,1765043119904,160.0,5.8e-07,2]
[396536905,1765043120927,160.0,5.8e-07,2]
[396536906,1765043121373,-99.46313774,6.93e-05,2]
[396536907,1765043121397,-173.05886585,6.93e-05,2]
[396536908,1765043122021,160.0,5.8e-07,2]
[396536909,1765043122973,1204.0,6.6e-05,2]
[396536910,1765043123049,160.0,5.8e-07,2]
[396536911,1765043124084,160.0,5.8e-07,2]
[396536912,1765043125700,160.0,5.8e-07,2]
[396536913,1765043125958,-162.20338691,6.8e-05,2]
[396536914,1765043128286,-219.97751539,6.8e-05,2]
[396536915,1765043131481,-326.64030813,6.8e-05,2]
[396536916,1765043133516,-345.9150314,6.8e-05,2]
[396536917,1765043136292,-149.26375817,6.8e-05,2]
[396536918,1765043136315,-461.53366251,6.861e-05,2]
[396536919,1765043139365,-232.2382511,6.861e-05,2]
[396536920,1765043141694,307.8,6.661e-05,2]
[396536921,1765043142051,-318.20252885,6.861e-05,2]
[396536922,1765043146755,-340.62805447,6.861e-05,2]
[396536923,1765043149924,-84.33863722,6.861e-05,2]
[396536924,1765043149948,-81.41930307,6.9e-05,2]
[396536925,1765043153131,-173.35404949,6.9e-05,2]
[396536926,1765043154404,-949.22664744,6.9e-05,2]
[396536927,1765043154428,-126.94113415,6.93e-05,2]
[396536928,1765043154450,-300.0,6.93e-05,2]
[396536929,1765043154474,-1010.0,6.93e-05,2]
[396536930,1765043154496,-1200.0,6.931e-05,2]
[396536931,1765043154520,-500.0,6.931e-05,2]
[396536932,1765043154545,-500.0,6.931e-05,2]
[396536933,1765043154568,-500.0,6.931e-05,2]
[396536934,1765043154590,-500.0,6.931e-05,2]
[396536935,1765043154615,-500.0,6.931e-05,2]
[396536936,1765043154639,-500.0,6.931e-05,2]
[396536937,1765043154662,-593.53174517,6.931e-05,2]
[396536938,1765043154686,-500.0,6.931e-05,2]
[396536939,1765043154707,-500.0,6.931e-05,2]
[396536940,1765043154735,-500.0,6.931e-05,2]
[396536941,1765043154761,-500.0,6.931e-05,2]
[396536942,1765043154788,-500.0,6.931e-05,2]
[396536943,1765043154815,-500.0,6.931e-05,2]
[396536944,1765043154844,-500.0,6.931e-05,2]
[396536945,1765043154871,-500.0,6.931e-05,2]
[396536946,1765043154898,-500.0,6.931e-05,2]
[396536947,1765043154922,-500.0,6.931e-05,2]
[396536948,1765043154946,-500.0,6.931e-05,2]
[396536949,1765043154971,-500.0,6.931e-05,2]
[396536950,1765043154995,-500.0,6.931e-05,2]
[396536951,1765043155022,-500.0,6.931e-05,2]
[396536952,1765043155047,-500.0,6.931e-05,2]
[396536953,1765043155075,-500.0,6.931e-05,2]
[396536954,1765043155102,-628.2710075,6.931e-05,2]
[396536955,1765043155127,-500.0,6.931e-05,2]
[396536956,1765043155152,-500.0,6.931e-05,2]
[396536957,1765043155177,-500.0,6.931e-05,2]
[396536958,1765043155201,-500.0,6.931e-05,2]
[396536959,1765043155227,-500.0,6.931e-05,2]
[396536960,1765043155251,-500.0,6.931e-05,2]
[396536961,1765043155275,-500.0,6.931e-05,2]
[396536962,1765043155301,-500.0,6.931e-05,2]
[396536963,1765043155325,-500.0,6.931e-05,2]
[396536964,1765043155350,-500.0,6.931e-05,2]
[396536965,1765043155374,-500.0,6.931e-05,2]
[396536966,1765043155398,-500.0,6.931e-05,2]
[396536967,1765043155422,-500.0,6.931e-05,2]
[396536968,1765043155446,-500.0,6.931e-05,2]
[396536969,1765043155473,-500.0,6.931e-05,2]
[396536970,1765043155500,-500.0,6.931e-05,2]
[396536971,1765043155525,-500.0,6.931e-05,2]
[396536972,1765043155549,-500.0,6.931e-05,2]
[396536973,1765043155575,-500.0,6.931e-05,2]
[396536974,1765043155600,-500.0,6.931e-05,2]
[396536975,1765043155624,-500.0,6.931e-05,2]
[396536976,1765043155648,-500.0,6.931e-05,2]
[396536977,1765043155672,-500.0,6.931e-05,2]
[396536978,1765043155696,-500.0,6.931e-05,2]
[396536979,1765043155722,-1312.10073735,6.931e-05,2]
[396536980,1765043155747,-1312.10073735,6.931e-05,2]
[396536981,1765043155770,-1312.10073735,6.931e-05,2]
[396536982,1765043155797,-1312.10073735,6.931e-05,2]
[396536983,1765043155822,-1312.10073735,6.931e-05,2]
[396536984,1765043155846,-1312.10073735,6.931e-05,2]
[396536985,1765043155871,-1312.10073735,6.931e-05,2]
[396536986,1765043155896,-1312.10073735,6.931e-05,2]
[396536987,1765043155920,-1312.10073735,6.931e-05,2]
[396536988,1765043155945,-1312.10073735,6.931e-05,2]
[396536989,1765043155971,-1312.10073735,6.931e-05,2]
[396536990,1765043155996,-1312.10073735,6.931e-05,2]
[396536991,1765043156021,-1312.10073735,6.931e-05,2]
[396536992,1765043156046,-1312.10073735,6.931e-05,2]
[396536993,1765043156075,-1312.10073735,6.931e-05,2]
[396536994,1765043156102,-1312.10073735,6.931e-05,2]
[396536995,1765043156128,-1312.10073735,6.931e-05,2]
[396536996,1765043156153,-1312.10073735,6.931e-05,2]
[396536997,1765043156181,-1312.10073735,6.931e-05,2]
[396536998,1765043156207,-1312.10073735,6.931e-05,2]
[396536999,1765043156232,-1312.10073735,6.931e-05,2]
[396537000,1765043156256,-1312.10073735,6.931e-05,2]
[396537001,1765043156281,-1312.10073735,6.931e-05,2]
[396537002,1765043156305,-1312.10073735,6.931e-05,2]
[396537003,1765043156469,-1312.10073735,6.931e-05,2]
[396537004,1765043156496,-1312.10073735,6.931e-05,2]
[396537005,1765043156522,-1312.10073735,6.931e-05,2]
[396537006,1765043156547,-1312.10073735,6.931e-05,2]
[396537007,1765043156571,-1312.10073735,6.931e-05,2]
[396537008,1765043156594,-1312.10073735,6.931e-05,2]
[396537009,1765043156618,-1312.10073735,6.931e-05,2]
[396537010,1765043156643,-1312.10073735,6.931e-05,2]
[396537011,1765043156668,-1312.10073735,6.931e-05,2]
[396537012,1765043156695,-1312.10073735,6.931e-05,2]
[396537013,1765043156720,-1312.10073735,6.931e-05,2]
[396537014,1765043156745,-1312.10073735,6.931e-05,2]
[396537015,1765043156772,-1312.10073735,6.931e-05,2]
[396537016,1765043156801,-1312.10073735,6.931e-05,2]
[396537017,1765043156825,-1312.10073735,6.931e-05,2]
[396537018,1765043156849,-1312.10073735,6.931e-05,2]
[396537019,1765043156878,-1312.10073735,6.931e-05,2]
[396537020,1765043156902,-1312.10073732,6.931e-05,2]
[396537021,1765043156926,-1312.10073732,6.931e-05,2]
[396537022,1765043156951,-1312.10073732,6.931e-05,2]
[396537023,1765043156978,-1312.10073732,6.931e-05,2]
[396537024,1765043157002,-1312.10073732,6.931e-05,2]
[396537025,1765043157028,-1312.10073732,6.931e-05,2]
[396537026,1765043157053,-1312.10073732,6.931e-05,2]
[396537027,1765043157078,-1312.10073732,6.931e-05,2]
[396537028,1765043157100,-185.55479514,6.931e-05,2]
[396537029,1765043157125,-493.21455863,6.931e-05,2]
[396537030,1765043157148,-272.52200359,6.931e-05,2]
[396537031,1765043157172,-382.1809023,6.931e-05,2]
[396537032,1765043157194,-213.50656972,6.931e-05,2]
[396537033,1765043157217,-617.8190977,6.931e-05,2]
[396537034,1765043157242,-615.6,6.978e-05,2]
[396537035,1765043157264,-224.1522209,7.001e-05,2]
[396537036,1765043157287,-522.86502893,7.03e-05,2]
[396537037,1765043157309,-941.15705207,7.03e-05,2]
[396537038,1765043157331,-1673.16809257,7.03e-05,2]
[396537039,1765043157354,-2614.32514464,7.03e-05,2]
[396537040,1765043157377,-500.0,7.083e-05,2]
[396537041,1765043157401,-13708.25964125,7.094e-05,2]
[396537042,1765043157424,-1204.0,7.1e-05,2]
[396537043,1765043157446,-216.3823958,7.107e-05,2]
[396537044,1765043157467,-389.48831244,7.107e-05,2]
[396537045,1765043157489,-692.42366656,7.107e-05,2]
[396537046,1765043157511,-281.35894874,7.107e-05,2]
[396537047,1765043157533,-506.44610773,7.107e-05,2]
[396537048,1765043157555,-900.34863597,7.107e-05,2]
[396537049,1765043157577,-151.0,7.107e-05,2]
[396537050,1765043157598,-926.0,7.107e-05,2]
[396537051,1765043157621,-1204.0,7.2e-05,2]
[396537052,1765043157644,-500.0,7.22e-05,2]
[396537053,1765043157667,-300.0,7.228e-05,2]
[396537054,1765043157689,-300.0,7.228e-05,2]
[396537055,1765043157711,-300.0,7.228e-05,2]
[396537056,1765043157734,-300.0,7.228e-05,2]
[396537057,1765043157757,-300.0,7.228e-05,2]
[396537058,1765043157781,-300.0,7.228e-05,2]
[396537059,1765043157806,-300.0,7.228e-05,2]
[396537060,1765043157829,-300.0,7.228e-05,2]
[396537061,1765043157851,-300.0,7.228e-05,2]
[396537062,1765043157875,-300.0,7.228e-05,2]
[396537063,1765043157896,-300.0,7.228e-05,2]
[396537064,1765043157918,-300.0,7.228e-05,2]
[396537065,1765043157940,-300.0,7.228e-05,2]
[396537066,1765043157962,-300.0,7.228e-05,2]
[396537067,1765043157984,-300.0,7.228e-05,2]
[396537068,1765043158007,-151.0,7.244e-05,2]
[396537069,1765043158028,-926.0,7.244e-05,2]
[396537070,1765043158053,-923.4,7.295e-05,2]
[396537071,1765043158073,-500.0,7.357e-05,2]
[396537072,1765043158097,-4496.15507419,7.359e-05,2]
[396537073,1765043158118,-267.85726964,7.359e-05,2]
[396537074,1765043158142,-500.0,7.359e-05,2]
[396537075,1765043158165,-327.87969433,7.359e-05,2]
[396537076,1765043158187,-2449.72057655,7.359e-05,2]
[396537077,1765043158210,-600.0,7.372e-05,2]
[396537078,1765043158232,-151.0,7.381e-05,2]
[396537079,1765043158253,-926.0,7.381e-05,2]
[396537080,1765043158275,-301.9689207,7.397e-05,2]
[396537081,1765043158296,-301.9689207,7.397e-05,2]
[396537082,1765043158319,-1204.0,7.4e-05,2]
[396537083,1765043158342,-151.0,7.401e-05,2]
[396537084,1765043158367,-4662.51281194,7.414e-05,2]
[396537085,1765043158393,-4835.02578598,7.469e-05,2]
[396537086,1765043158417,-500.0,7.494e-05,2]
[396537087,1765043158440,-1204.0,7.5e-05,2]
[396537088,1765043159252,-151.0,7.518e-05,2]
[396537089,1765043159275,-264.12078551,7.518e-05,2]
[396537090,1765043159648,426.59211273,6.862e-05,2]
[396537091,1765043160885,-243.99765812,7.518e-05,2]
[396537092,1765043162061,500.0,6.931e-05,2]
[396537093,1765043162150,500.0,6.931e-05,2]
[396537094,1765043162239,500.00000004,6.931e-05,2]
[396537095,1765043163891,319.14265227,6.931e-05,2]
[396537096,1765043164444,-306.00234188,7.518e-05,2]
[396537097,1765043165976,-111.87921449,7.518e-05,2]
[396537098,1765043165998,-100.8648146,7.524e-05,2]
[396537099,1765043168078,-205.91290897,7.524e-05,2]
[396537100,1765043170617,550.0,6.931e-05,2]
[396537101,1765043171257,-221.52844626,7.524e-05,2]
[396537102,1765043172237,2403.99738131,7.449e-05,2]
[396537103,1765043173378,-287.25597091,7.524e-05,2]
[396537104,1765043176530,345.7691381,6.931e-05,2]
[396537105,1765043176651,1500.97,6.6e-05,2]
[396537106,1765043176950,1500.97,6.8e-05,2]
[396537107,1765043177326,1500.97,6.9e-05,2]
[396537108,1765043177624,378.19082828,7.1e-05,2]
[396537109,1765043177648,1122.77917172,7.1e-05,2]
[396537110,1765043177903,1500.97,7.2e-05,2]
[396537111,1765043178235,1500.97,7.4e-05,2]
[396537112,1765043178502,1500.97,7.5e-05,2]
[396537113,1765043180592,1130.07888407,7.449e-05,2]
[396537114,1765043180664,415.12078551,6.931e-05,2]
[396537115,1765043188396,427.44135523,6.931e-05,2]
[396537116,1765043189016,570.55569132,7.449e-05,2]
[396537117,1765043193599,-1689.30005517,7.524e-05,2]
[396537118,1765043193625,-1231.21,7.612e-05,2]
[396537119,1765043193648,-420.0,7.623e-05,2]
[396537120,1765043193671,-1680.0,7.624e-05,2]
[396537121,1765043193694,-500.0,7.631e-05,2]
[396537122,1765043193719,-151.0,7.655e-05,2]
[396537123,1765043193740,-926.0,7.655e-05,2]
[396537124,1765043193763,-1500.97,7.7e-05,2]
[396537125,1765043193785,-224.1522209,7.758e-05,2]
[396537126,1765043193811,-500.0,7.768e-05,2]
[396537127,1765043193835,-300.0,7.791e-05,2]
[396537128,1765043193856,-245.0,7.792e-05,2]
[396537129,1765043193881,-926.0,7.792e-05,2]
[396537130,1765043193904,-1500.97,7.8e-05,2]
[396537131,1765043193925,-189.319,7.803e-05,2]
[396537132,1765043193946,-445.412,7.842e-05,2]
[396537133,1765043193967,-15714.7349853,7.862e-05,2]
[396537134,1765043193988,-258.53908677,7.899e-05,2]
[396537135,1765043194009,-2293.07948025,7.9e-05,2]
[396537136,1765043194071,1501.03,6.612e-05,2]
[396537137,1765043195438,500.0,7.791e-05,2]
[396537138,1765043195496,500.0,7.791e-05,2]
[396537139,1765043195555,500.0,7.791e-05,2]
[396537140,1765043195617,500.0,7.791e-05,2]
[396537141,1765043195692,500.0,7.791e-05,2]
[396537142,1765043195793,500.0,7.791e-05,2]
[396537143,1765043195879,500.0,7.791e-05,2]
[396537144,1765043195937,500.0,7.791e-05,2]
[396537145,1765043195989,500.0,7.791e-05,2]
[396537146,1765043196036,500.0,7.791e-05,2]
[396537147,1765043196082,500.0,7.791e-05,2]
[396537148,1765043196134,500.0,7.791e-05,2]
[396537149,1765043196193,500.0,7.791e-05,2]
[396537150,1765043196241,580.92848946,7.791e-05,2]
[396537151,1765043196306,500.0,7.791e-05,2]
[396537152,1765043196365,500.0,7.791e-05,2]
[396537153,1765043196426,208.70483524,7.791e-05,2]
[396537154,1765043196479,-291.29516476,7.791e-05,2]
[396537155,1765043196936,1689.30005517,7.449e-05,2]
[396537156,1765043204927,926.0,7.85e-05,2]
[396537157,1765043212307,-926.0,7.929e-05,2]
[396537158,1765043213144,-1539.01,7.93e-05,2]
[396537159,1765043213168,-160.523436,7.977e-05,2]
[396537160,1765043213192,-1984.64881965,7.987e-05,2]
[396537161,1765043213218,-1500.97,8e-05,2]
[396537162,1765043214010,176.85055349,7.791e-05,2]
[396537163,1765043214035,323.14944651,7.791e-05,2]
[396537164,1765043215438,-327.89807133,8.063e-05,2]
[396537165,1765043216674,-474.00251374,8.063e-05,2]
[396537166,1765043217116,-1608.55095263,8.063e-05,2]
[396537167,1765043217136,-926.0,8.066e-05,2]
[396537168,1765043217160,-250.0,8.082e-05,2]
[396537169,1765043217182,-1390.62696225,8.1e-05,2]
[396537170,1765043220778,270.56,6.706e-05,2]
[396537171,1765043221306,541.12,7.026e-05,2]
[396537172,1765043221808,811.69,7.345e-05,2]
[396537173,1765043222487,1082.25,7.664e-05,2]
[396537174,1765043222655,1352.81,7.984e-05,2]
[396537175,1765043223935,-312.50812098,8.115e-05,2]
[396537176,1765043226067,-229.13565306,8.115e-05,2]
[396537177,1765043226097,-2490.75394338,8.115e-05,2]
[396537178,1765043226120,-300.0,8.182e-05,2]
[396537179,1765043226143,-160.83168907,8.183e-05,2]
[396537180,1765043226168,-289.49704033,8.183e-05,2]
[396537181,1765043226189,-514.66140503,8.183e-05,2]
[396537182,1765043226211,-193.58854944,8.183e-05,2]
[396537183,1765043226232,-348.459389,8.183e-05,2]
[396537184,1765043226254,-519.74421503,8.183e-05,2]
[396537185,1765043226277,-935.53958705,8.183e-05,2]
[396537186,1765043226297,-926.0,8.203e-05,2]
[396537187,1765043226317,-169.730852,8.219e-05,2]
[396537188,1765043226340,-3607.676458,8.219e-05,2]
[396537189,1765043226360,-500.0,8.219e-05,2]
[396537190,1765043226382,-500.0,8.219e-05,2]
[396537191,1765043226404,-500.0,8.219e-05,2]
[396537192,1765043226426,-500.0,8.219e-05,2]
[396537193,1765043226447,-500.0,8.219e-05,2]
[396537194,1765043226468,-500.0,8.219e-05,2]
[396537195,1765043226490,-500.0,8.219e-05,2]
[396537196,1765043226510,-500.0,8.219e-05,2]
[396537197,1765043226533,-458.35457331,8.219e-05,2]
[396537198,1765043226554,-500.0,8.219e-05,2]
[396537199,1765043226575,-500.0,8.219e-05,2]
[396537200,1765043226595,-500.0,8.219e-05,2]
[396537201,1765043226616,-500.0,8.219e-05,2]
[396537202,1765043226639,-500.0,8.219e-05,2]
[396537203,1765043226660,-703.35,8.219e-05,2]
[396537204,1765043226682,-500.0,8.219e-05,2]
[396537205,1765043226704,-292.03281952,8.219e-05,2]
[396537206,1765043226726,-500.0,8.219e-05,2]
[396537207,1765043226747,-500.0,8.219e-05,2]
[396537208,1765043226769,-500.0,8.219e-05,2]
[396537209,1765043226790,-668.58,8.219e-05,2]
[396537210,1765043226815,-500.0,8.219e-05,2]
[396537211,1765043226836,-500.0,8.219e-05,2]
[396537212,1765043226858,-591.0,8.219e-05,2]
[396537213,1765043226881,-500.0,8.219e-05,2]
[396537214,1765043226902,-622.18,8.219e-05,2]
[396537215,1765043226923,-500.0,8.219e-05,2]
[396537216,1765043226943,-500.0,8.219e-05,2]
[396537217,1765043226965,-175.5571534,8.219e-05,2]
[396537218,1765043226986,-500.0,8.219e-05,2]
[396537219,1765043227009,-500.0,8.219e-05,2]
[396537220,1765043227031,-500.0,8.219e-05,2]
[396537221,1765043227053,-500.0,8.219e-05,2]
[396537222,1765043227077,-500.0,8.219e-05,2]
[396537223,1765043227099,-500.0,8.219e-05,2]
[396537224,1765043227122,-500.0,8.219e-05,2]
[396537225,1765043227143,-500.0,8.219e-05,2]
[396537226,1765043227167,-500.0,8.219e-05,2]
[396537227,1765043227189,-500.0,8.219e-05,2]
[396537228,1765043227211,-220.84276307,8.219e-05,2]
[396537229,1765043227232,-500.0,8.219e-05,2]
[396537230,1765043227252,-500.0,8.219e-05,2]
[396537231,1765043227274,-500.0,8.219e-05,2]
[396537232,1765043227296,-500.0,8.219e-05,2]
[396537233,1765043227320,-500.0,8.219e-05,2]
[396537234,1765043227342,-500.0,8.219e-05,2]
[396537235,1765043227364,-500.0,8.219e-05,2]
[396537236,1765043227386,-1277.75,8.219e-05,2]
[396537237,1765043227408,-500.0,8.219e-05,2]
[396537238,1765043227432,-500.0,8.219e-05,2]
[396537239,1765043227454,-500.0,8.219e-05,2]
[396537240,1765043227475,-979.0,8.219e-05,2]
[396537241,1765043227511,-1226.71,8.219e-05,2]
[396537242,1765043227533,-500.0,8.219e-05,2]
[396537243,1765043227556,-680.24,8.219e-05,2]
[396537244,1765043227577,-500.0,8.219e-05,2]
[396537245,1765043227599,-500.0,8.219e-05,2]
[396537246,1765043227622,-500.0,8.219e-05,2]
[396537247,1765043227644,-500.0,8.219e-05,2]
[396537248,1765043227666,-500.0,8.219e-05,2]
[396537249,1765043227687,-2152.61,8.219e-05,2]
[396537250,1765043227708,-500.0,8.219e-05,2]
[396537251,1765043227729,-500.0,8.219e-05,2]
[396537252,1765043227752,-676.19,8.219e-05,2]
[396537253,1765043227773,-500.0,8.219e-05,2]
[396537254,1765043227795,-1442.46,8.219e-05,2]
[396537255,1765043227992,-500.0,8.219e-05,2]
[396537256,1765043228016,-500.0,8.219e-05,2]
[396537257,1765043228039,-779.87,8.219e-05,2]
[396537258,1765043228063,-500.0,8.219e-05,2]
[396537259,1765043228086,-887.74,8.219e-05,2]
[396537260,1765043228109,-500.0,8.219e-05,2]
[396537261,1765043228130,-500.0,8.219e-05,2]
[396537262,1765043228153,-500.0,8.219e-05,2]
[396537263,1765043228175,-1319.06,8.219e-05,2]
[396537264,1765043228198,-500.0,8.219e-05,2]
[396537265,1765043228220,-500.0,8.219e-05,2]
[396537266,1765043228243,-500.0,8.219e-05,2]
[396537267,1765043228266,-578.93,8.219e-05,2]
[396537268,1765043228288,-500.0,8.219e-05,2]
[396537269,1765043228312,-500.0,8.219e-05,2]
[396537270,1765043228336,-2164.63,8.219e-05,2]
[396537271,1765043228359,-500.0,8.219e-05,2]
[396537272,1765043228383,-500.0,8.219e-05,2]
[396537273,1765043228408,-500.0,8.219e-05,2]
[396537274,1765043228431,-500.0,8.219e-05,2]
[396537275,1765043228455,-500.0,8.219e-05,2]
[396537276,1765043228478,-500.0,8.219e-05,2]
[396537277,1765043228499,-500.0,8.219e-05,2]
[396537278,1765043228522,-500.0,8.219e-05,2]
[396537279,1765043228545,-500.0,8.219e-05,2]
[396537280,1765043228568,-510.22806673,8.219e-05,2]
[396537281,1765043228591,-500.0,8.219e-05,2]
[396537282,1765043228618,-461.4656703,8.219e-05,2]
[396537283,1765043228644,-500.0,8.219e-05,2]
[396537284,1765043228668,-500.0,8.219e-05,2]
[396537285,1765043228694,-503.34,8.219e-05,2]
[396537286,1765043228718,-500.0,8.219e-05,2]
[396537287,1765043228740,-500.0,8.219e-05,2]
[396537288,1765043228765,-500.0,8.219e-05,2]
[396537289,1765043228788,-500.0,8.219e-05,2]
[396537290,1765043228813,-500.0,8.219e-05,2]
[396537291,1765043228837,-500.0,8.219e-05,2]
[396537292,1765043228862,-500.0,8.219e-05,2]
[396537293,1765043228887,-595.55,8.219e-05,2]
[396537294,1765043228911,-500.0,8.219e-05,2]
[396537295,1765043228935,-500.0,8.219e-05,2]
[396537296,1765043228957,-665.55,8.219e-05,2]
[396537297,1765043228979,-500.0,8.219e-05,2]
[396537298,1765043229002,-269.35,8.219e-05,2]
[396537299,1765043229024,-500.0,8.219e-05,2]
[396537300,1765043229047,-500.0,8.219e-05,2]
[396537301,1765043229068,-500.0,8.219e-05,2]
[396537302,1765043229091,-1279.94,8.219e-05,2]
[396537303,1765043229114,-500.0,8.219e-05,2]
[396537304,1765043229136,-500.0,8.219e-05,2]
[396537305,1765043229159,-500.0,8.219e-05,2]
[396537306,1765043229181,-500.0,8.219e-05,2]
[396537307,1765043229204,-500.0,8.219e-05,2]
[396537308,1765043229226,-557.78,8.219e-05,2]
[396537309,1765043229248,-518.62,8.219e-05,2]
[396537310,1765043229270,-500.0,8.219e-05,2]
[396537311,1765043229292,-1660.0,8.219e-05,2]
[396537312,1765043229312,-500.0,8.219e-05,2]
[396537313,1765043229334,-500.0,8.219e-05,2]
[396537314,1765043229355,-646.72814449,8.219e-05,2]
[396537315,1765043229377,-526.77,8.219e-05,2]
[396537316,1765043229399,-500.0,8.219e-05,2]
[396537317,1765043229420,-500.0,8.219e-05,2]
[396537318,1765043229442,-975.58,8.219e-05,2]
[396537319,1765043229463,-500.0,8.219e-05,2]
[396537320,1765043229484,-1465.98,8.219e-05,2]
[396537321,1765043229506,-500.0,8.219e-05,2]
[396537322,1765043229527,-500.0,8.219e-05,2]
[396537323,1765043229549,-500.0,8.219e-05,2]
[396537324,1765043229570,-500.0,8.219e-05,2]
[396537325,1765043229590,-500.0,8.219e-05,2]
[396537326,1765043229613,-500.0,8.219e-05,2]
[396537327,1765043229635,-500.0,8.219e-05,2]
[396537328,1765043229656,-500.0,8.219e-05,2]
[396537329,1765043229678,-500.0,8.219e-05,2]
[396537330,1765043229700,-249.72292311,8.219e-05,2]
[396537331,1765043229722,-500.0,8.219e-05,2]
[396537332,1765043229743,-500.0,8.219e-05,2]
[396537333,1765043229764,-500.0,8.219e-05,2]
[396537334,1765043229785,-500.0,8.219e-05,2]